Cogmind - Beta 10.2 @@@ ROGUE MODE // 2021.03.27 @ 23:29:56 Player: ChromeKnight Result: Destroyed by H-88 Terminator with Heavy Machine Gun Performance ------------- Evolutions (9) 4500 Regions Visited (31) 6200 Robots Destroyed (122) 610 Value Destroyed (13346) 13346 Prototype IDs (32) 640 Alien Tech Used (0) 0 Bonus (17907) 17907 TOTAL SCORE: 43203 Bonus ------- High Alert Combat Kills 2190 Follower Combat Kills 7351 Entered Garrisons 2400 Used RIF Installer 6000 Aligned with FarCom 300 Friendly Fire -334 Cogmind --------- Core Integrity 0/1600 Matter 146/300 Energy 600/600 System Corruption 23% Temperature Cool (112) Movement Core (1300) Ox25 Location -1/Access Parts ------- > --- POWER (2) -------- Reinforced Quantum Reactor Reinforced Quantum Reactor > --- PROPULSION (4) --- (None) > --- UTILITY (16) ----- Large Storage Unit Advanced Target Analyzer Relay Coupler [NC] (29) Relay Coupler [Swarmer] (24) Relay Coupler [Brawler] (21) Relay Coupler [Duelist] (4) Relay Coupler [Sentry] (35) > --- WEAPON (3) ------- (None) > --- INVENTORY (10) --- Light Quantum Reactor Relay Coupler [NC] (40) Relay Coupler [NC] (35) Relay Coupler [Swarmer] (47) Relay Coupler [Grunt] (43) Relay Coupler [Duelist] (39) Relay Coupler [Sentry] (47) Relay Coupler [Specialist] (47) Railgun Advanced Datajack Peak State ------------ > --- POWER ------------ Light Particle Reactor Light Quantum Reactor > --- PROPULSION ------- Combat Antigrav System Combat Antigrav System Combat Antigrav System Combat Antigrav System > --- UTILITY ---------- Advanced Heat Sink Advanced Heat Sink Advanced Heat Sink Large Storage Unit Large Storage Unit Advanced Target Analyzer Experimental System Shield Relay Coupler [ARC] Relay Coupler [ARC] Relay Coupler [Swarmer] Relay Coupler [Grunt] Relay Coupler [Brawler] Relay Coupler [Duelist] Relay Coupler [Demolisher] Relay Coupler [Specialist] Relay Coupler [Hunter] > --- WEAPON ----------- Gamma Rifle Enhanced Quantum Rifle Enhanced Quantum Rifle > --- INVENTORY -------- Light Antimatter Reactor Myomer Leg Advanced Heat Sink Advanced Heat Sink Relay Coupler [NC] Relay Coupler [NC] Relay Coupler [NC] Relay Coupler [Swarmer] Relay Coupler [Swarmer] Relay Coupler [Duelist] Relay Coupler [Sentry] Relay Coupler [Sentry] Relay Coupler [Specialist] Phase Gun Advanced Datajack Advanced Remote Datajack [Rating: 152] Favorites ----------- Power Reinforced Fission Core Engine Light Angular Momentum Engine Power Core Reinforced Fission Core Reactor Reinforced Quantum Reactor Propulsion Carbon-fiber Leg Treads Armored Medium Treads Leg Carbon-fiber Leg Wheel Compact Wheel Hover Unit Combat Antigrav System Flight Unit Flying Fortress v7 Utility Large Storage Unit Device Advanced Heat Sink Storage Large Storage Unit Processor Advanced Target Analyzer Hackware Relay Coupler [Sentry] Protection Improved Medium Armor Plating Weapon Remote Datajack Energy Gun Beamcaster Ballistic Gun Hypervelocity Coil Gun Ballistic Cannon Linear Accelerator Launcher Rocket Launcher Special Weapon Remote Datajack Impact Weapon Gravity Flail Slashing Weapon Power Sword Piercing Weapon Force Lance Special Melee Weapon Improved Datajack Build | -11 -10 -10 -10 -9 -8 -8 -8 -8 -7 -7 -7 -7 -7 -7 -6 -6 -5 -5 -5 -5 -4 -4 -4 -4 -3 -3 -2 -2 -1 -1 -1 ------- Run | Scr Mat Min Exi Min Mat Gar Mat Gar Fac Was Fac Gar Fac Gar Fac Gar Fac Gar Fac Gar Fac Gar Fac Gar Res Gar Res Gar Acc Gar Acc Slots Evolved 18 | . . . . . 4 . . . 2 . . . . . 2 . 2 . . . 2 . . . 2 . 2 . 2 . . Power 1 | . . . . . 1 . . . . . . . . . . . . . . . . . . . . . . . . . . Propulsion 2 | . . . . . 2 . . . . . . . . . . . . . . . . . . . . . . . . . . Utility 14 | . . . . . 1 . . . 2 . . . . . 2 . 2 . . . 2 . . . 2 . 1 . 2 . . Weapon 1 | . . . . . . . . . . . . . . . . . . . . . . . . . . . 1 . . . . Parts Attached 388 | 6 4 7 . 4 3 4 6 9 4 1 . 3 6 14 13 23 10 30 1 22 3 25 11 17 27 16 1 9 8 91 10 Power 54 | 1 . 1 . . 1 2 1 3 2 . . . 3 3 1 3 1 3 . . 2 1 2 2 3 2 . 1 . 16 . Engine 13 | 1 . . . . 1 . . 1 2 . . . 3 1 1 3 . . . . . . . . . . . . . . . Core 21 | . . 1 . . . 2 1 2 . . . . . 2 . . 1 3 . . 2 1 2 2 1 . . . . 1 . Reactor 20 | . . . . . . . . . . . . . . . . . . . . . . . . . 2 2 . 1 . 15 . Propulsion 97 | 2 . 3 . 1 1 . . . . . . . . 2 6 4 . 9 . 10 . 10 7 3 9 2 . 2 4 14 8 Treads 5 | . . . . . . . . . . . . . . . . . . . . . . . . 1 4 . . . . . . Leg 70 | . . 3 . 1 . . . . . . . . . 2 6 4 . 9 . 10 . 10 7 2 . . . . . 10 6 Wheel 4 | 2 . . . . . . . . . . . . . . . . . . . . . . . . . . . . . . 2 Hover 17 | . . . . . . . . . . . . . . . . . . . . . . . . . 5 2 . 2 4 4 . Flight 1 | . . . . . 1 . . . . . . . . . . . . . . . . . . . . . . . . . . Utility 139 | 1 3 . . 1 1 . 2 3 2 . . 2 1 7 3 7 3 13 . 9 1 9 . 10 9 12 1 4 4 29 2 Device 20 | . . . . . . . . . . . . . . . 1 . . . . . . . . . 3 1 . . . 15 . Storage 8 | 1 2 . . . . . . . 1 . . . 1 . . . . . . . . . . . 1 . . . 2 . . Processor 7 | . 1 . . . 1 . . . 1 . . . . . . . . . . . . . . . . . . . . 4 . Hackware 95 | . . . . . . . 1 3 . . . 2 . 6 1 7 2 13 . 8 1 9 . 10 4 11 1 4 1 9 2 Protection 9 | . . . . 1 . . 1 . . . . . . 1 1 . 1 . . 1 . . . . 1 . . . 1 1 . Artifact . | . . . . . . . . . . . . . . . . . . . . . . . . . . . . . . . . Weapon 98 | 2 1 3 . 2 . 2 3 3 . 1 . 1 2 2 3 9 6 5 1 3 . 5 2 2 6 . . 2 . 32 . Energy Gun 26 | . . 2 . . . . . 1 . 1 . 1 1 1 . 3 . . . . . . . . . . . . . 16 . Energy Cannon . | . . . . . . . . . . . . . . . . . . . . . . . . . . . . . . . . Ballistic Gun 29 | 2 1 1 . . . 1 2 1 . . . . . . 2 3 4 2 1 . . 1 . . . . . . . 8 . Ballistic Cannon 3 | . . . . . . . . . . . . . . . . . . 1 . 1 . . . . . . . . . 1 . Launcher 1 | . . . . 1 . . . . . . . . . . . . . . . . . . . . . . . . . . . Special Weapon 19 | . . . . . . . . . . . . . 1 1 1 2 2 2 . 1 . 2 . . 2 . . 1 . 4 . Impact Weapon 6 | . . . . . . . . . . . . . . . . . . . . . . . 1 1 3 . . 1 . . . Slashing Weapon 1 | . . . . . . . . . . . . . . . . . . . . . . . . . . . . . . 1 . Piercing Weapon 9 | . . . . 1 . . . . . . . . . . . . . . . 1 . 2 1 1 1 . . . . 2 . Special Melee Weapon 4 | . . . . . . 1 1 1 . . . . . . . 1 . . . . . . . . . . . . . . . Unidentified Prototypes 7 | . . . . . . . . . 1 . . . . . . . . . . . . . 1 . 3 . . . . 2 . Parts Lost 103 | . 1 4 . . . 4 . 6 . . . . . 3 . 3 1 3 . 3 . 7 1 13 4 . 2 . 1 31 16 Power 19 | . . 1 . . . 3 . 3 . . . . . 1 . . . . . . . . . 2 2 . . . 1 6 . Propulsion 24 | . 1 . . . . . . . . . . . . 2 . . 1 1 . . . 3 1 5 . . 1 . . 5 4 Utility 38 | . . . . . . . . 1 . . . . . . . 2 . 2 . 2 . 3 . 5 2 . 1 . . 11 9 Weapon 22 | . . 3 . . . 1 . 2 . . . . . . . 1 . . . 1 . 1 . 1 . . . . . 9 3 Highest Loss Streak 13 | . 1 3 . . . 2 . 3 . . . . . 1 . 2 1 2 . 1 . 2 1 9 2 . 2 . 1 9 13 Average Slot Usage (%) 89 | . 93 92 100 100 61 64 66 58 71 76 76 76 75 77 93 96 92 95 100 98 93 92 93 75 84 95 86 93 92 93 94 Engine 3 | . 14 4 . . . 7 . 1 13 15 15 15 15 13 7 13 5 . . . . . . . . . . . . . . Core 5 | . . 9 14 14 9 7 13 7 1 . . . . . 4 . 4 10 11 11 10 10 9 8 3 2 . . . . . Reactor 1 | . . . . . . . . . . . . . . . . . . . . . . . . . 2 5 8 8 7 7 8 Leg 13 | . . 17 28 28 13 . . . . . . . . 9 23 25 19 22 23 22 21 20 20 10 . . . . . 6 13 Hover 2 | . . . . . . . . . . . . . . . . . . . . . . . . . 2 17 14 16 16 8 . Device 1 | . . . . . . . . . . . . . . . 4 . . . . . . . . . 2 . . . . 9 9 Storage 10 | . 14 14 14 14 9 9 9 9 15 15 15 15 15 15 13 13 11 11 11 11 10 10 10 5 4 4 4 4 4 8 7 Processor 2 | . 11 14 14 11 . 9 9 2 2 7 7 7 6 . . . . . . . . . . . . . . . . 5 7 Hackware 31 | . . . . . . . 4 14 15 15 15 15 15 20 23 29 32 36 41 37 35 38 42 40 43 52 49 52 51 35 31 Protection 1 | . . . . 2 9 5 4 . . . . . . 1 . . 3 . . 1 5 2 . . 1 . . . . 2 3 Energy Gun 1 | . . 10 14 11 . . . 1 . 3 7 7 6 . . 2 . . . . . . . . . . . . . 2 . Ballistic Gun 1 | . 28 15 14 11 . 2 5 . 7 3 . . . . 2 4 7 . 2 . . . . . . . . . . 2 3 Ballistic Cannon 1 | . . . . . . . . . . . . . . . . . . 4 2 2 . . . . . . . . . 1 3 Special Weapon 3 | . . . . . . . . . . . . . . 6 5 5 2 4 5 4 5 5 5 1 1 4 4 4 4 2 3 Piercing Weapon 3 | . . . . 2 9 9 9 9 7 7 7 7 7 7 4 . . . . 1 5 5 5 5 4 4 4 4 4 1 . Naked Turns . | . . . . . . . . . . . . . . . . . . . . . . . . . . . . . . . . Heaviest Build 137 | 13 25 25 25 31 40 40 35 31 59 60 60 61 61 65 66 68 81 81 74 74 71 91 84 68 64 55 55 60 76 137 137 Greatest Support 124 | 26 26 20 20 30 72 72 72 72 72 72 72 72 72 72 66 71 71 61 60 60 60 75 85 85 124 70 63 63 120 120 103 Greatest Overweight (x) 45 | 1 1 2 1 1 1 . . 6 . . . . . 19 5 . 1 2 1 1 1 2 2 10 7 1 1 1 . 21 45 Average Overweight (x) . | . . 1 1 . . . . . . . . . . 2 . . . . 1 1 1 1 . . . . . . . . 1 Largest Inventory Capacity 20 | 6 14 10 10 10 10 10 10 10 16 16 16 16 16 16 16 16 16 16 16 16 16 16 16 16 10 8 8 8 20 16 16 Average Capacity 14 | 5 9 10 10 10 10 10 10 10 16 16 16 16 16 16 16 16 16 16 16 16 16 16 16 10 8 8 8 8 9 16 15 Most Carried 16 | 1 4 4 7 10 10 10 10 10 15 16 16 16 16 16 16 16 16 16 16 16 16 16 16 16 10 8 8 8 10 16 16 Average Carried 13 | . 2 2 4 8 8 8 9 9 11 15 16 15 15 15 15 15 15 15 16 14 15 15 16 10 8 7 7 7 8 14 15 Final Capacity 16 | 6 10 10 10 10 10 10 10 10 16 16 16 16 16 16 16 16 16 16 16 16 16 16 16 10 8 8 8 8 16 16 10 Final Carried 16 | 1 4 3 7 7 7 9 10 10 15 16 16 15 14 16 16 16 15 16 16 16 16 16 16 10 8 8 8 8 9 16 10 Class Distribution -------------------- 69% | Botlord-Mutant 13% | Mutant 9% | Commander-Mutant 5% | Bothacker-Mutant Dominant Class ---------------- Mutant | -10/Materials Mutant | -10/Mines Mutant | -10/Exiles Mutant | -9/Mines Mutant | -8/Materials Mutant | -8/Garrison Mutant | -8/Materials Mutant | -8/Garrison Mutant | -7/Factory Mutant | -7/Waste Mutant | -7/Factory Mutant | -7/Garrison Mutant | -7/Factory Bothacker-Mutant | -7/Garrison Botlord-Mutant | -6/Factory Botlord-Mutant | -6/Garrison Botlord-Mutant | -5/Factory Botlord-Mutant | -5/Garrison Botlord-Mutant | -5/Factory Botlord-Mutant | -5/Garrison Botlord-Mutant | -4/Factory Botlord-Mutant | -4/Garrison Botlord-Mutant | -4/Factory Commander-Mutant | -4/Garrison Botlord-Mutant | -3/Research Botlord-Mutant | -3/Garrison Botlord-Mutant | -2/Research Botlord-Mutant | -2/Garrison Botlord-Mutant | -1/Access Botlord-Mutant | -1/Garrison Botlord-Mutant | -1/Access Resources | -11 -10 -10 -10 -9 -8 -8 -8 -8 -7 -7 -7 -7 -7 -7 -6 -6 -5 -5 -5 -5 -4 -4 -4 -4 -3 -3 -2 -2 -1 -1 -1 ----------- Run | Scr Mat Min Exi Min Mat Gar Mat Gar Fac Was Fac Gar Fac Gar Fac Gar Fac Gar Fac Gar Fac Gar Fac Gar Res Gar Res Gar Acc Gar Acc Matter Collected 9274 | 195 124 132 . 130 11 65 104 65 30 20 . 30 70 260 490 525 295 1024 340 815 193 358 117 288 358 491 . 408 233 1480 623 Remotely . | . . . . . . . . . . . . . . . . . . . . . . . . . . . . . . . . Salvage Created 6259 | . 124 182 . 222 31 165 308 356 57 219 . 62 236 96 . 247 194 318 143 90 . 457 207 389 737 120 . . . 943 356 Parts 312 | . 6 10 . 12 3 8 17 18 4 2 . 3 16 4 . 17 12 10 7 3 . 24 10 14 45 6 . . . 45 16 Haulers Intercepted 5 | . . . . . . . 1 . 1 . . . . . . . . . . . . . 1 . 1 . . . . . 1 Recyclers Shooed 4 | . . . . . . . . . . . . . . . . . 1 . . . . . . . 1 . . . . . 2 Parts Field Recycled . | . . . . . . . . . . . . . . . . . . . . . . . . . . . . . . . . Retrieved Matter . | . . . . . . . . . . . . . . . . . . . . . . . . . . . . . . . . Parts Self-Destructed . | . . . . . . . . . . . . . . . . . . . . . . . . . . . . . . . . Prevented . | . . . . . . . . . . . . . . . . . . . . . . . . . . . . . . . . Kills | -11 -10 -10 -10 -9 -8 -8 -8 -8 -7 -7 -7 -7 -7 -7 -6 -6 -5 -5 -5 -5 -4 -4 -4 -4 -3 -3 -2 -2 -1 -1 -1 ------- Run | Scr Mat Min Exi Min Mat Gar Mat Gar Fac Was Fac Gar Fac Gar Fac Gar Fac Gar Fac Gar Fac Gar Fac Gar Res Gar Res Gar Acc Gar Acc Combat Hostiles Destroyed 103 | . 3 4 . 6 . 4 5 9 . . . 1 3 3 . 4 2 5 1 3 . 10 2 8 13 2 . . . 11 4 Melee 63 | . . . . 1 . 4 3 9 . . . 1 2 3 . . . . . . . 10 2 8 10 2 . . . 8 . Guns 26 | . 3 4 . 2 . . 2 . . . . . 1 . . 4 2 2 1 . . . . . . . . . . 3 2 Cannons 8 | . . . . . . . . . . . . . . . . . . 3 . 3 . . . . . . . . . . 2 AOE 6 | . . . . 3 . . . . . . . . . . . . . . . . . . . . 3 . . . . . . Classes Destroyed 13 | . 1 . . 2 1 1 1 1 1 . . . 2 . . . . . 1 . . . . . . . . . . 2 . Worker 7 | . . . . . . . . . 1 . . . 1 . . . . . 3 . . . . . 1 . . . . . 1 Tunneler 2 | . . . . 1 . . . . . . . . . . . . . . . . . . . . . . . . . . 1 Hauler 5 | . . . . . . . 1 . 1 . . . . . . . . . . . . . 1 . 1 . . . . . 1 Operator 1 | . . . . . . . . . . . . . 1 . . . . . . . . . . . . . . . . . . Watcher 3 | . . . . . 1 . . . . . . . . . . . 1 1 . . . . . . . . . . . . . Swarmer 22 | . . . . . . . . 3 . . . . . 2 . 1 . . . 1 . 6 . 4 5 . . . . . . Grunt 45 | . 3 4 . 5 . 3 2 5 . . . . 1 1 . 1 . 4 . 2 . 4 . 4 2 2 . . . 1 1 Brawler 2 | . . . . 1 . . . 1 . . . . . . . . . . . . . . . . . . . . . . . Sentry 9 | . . . . . . 1 3 . . . . 1 1 . . 2 1 . . . . . . . . . . . . . . Specialist 1 | . . . . . . . . . . . . . . . . . . . 1 . . . . . . . . . . . . Hunter 3 | . . . . . . . . . . . . . . . . . . . . . . . . . . . . . . 3 . Programmer 21 | . . . . . . . . . . . . . 1 . . . 1 2 . . . . 2 . 6 . . . . 6 3 Behemoth 1 | . . . . . . . . . . . . . . . . . . . . . . . . . . . . . . 1 . Best Kill Streak 5 | . 2 2 . 3 1 3 3 3 2 . . 1 1 1 . 1 1 1 4 2 . 3 1 3 5 1 . . . 2 3 Combat Bots Only 5 | . 2 2 . 2 . 3 3 3 . . . 1 1 1 . 1 1 1 1 2 . 3 1 3 5 1 . . . 2 1 Max Kills in Single Turn 3 | . 1 1 . 2 1 1 1 1 1 . . 1 1 1 . 1 1 1 1 1 . 1 1 1 3 1 . . . 1 2 Gunslinging . | . . . . . . . . . . . . . . . . . . . . . . . . . . . . . . . . Exploded 3 | . . . . 1 . . . . . . . . . . . . . . . . . . . . 3 . . . . . . Melee 1 | . . . . 1 . 1 1 1 . . . 1 1 1 . . . . . . . 1 1 1 1 1 . . . 1 . Uniques/NPCs Destroyed . | . . . . . . . . . . . . . . . . . . . . . . . . . . . . . . . . Combat | -11 -10 -10 -10 -9 -8 -8 -8 -8 -7 -7 -7 -7 -7 -7 -6 -6 -5 -5 -5 -5 -4 -4 -4 -4 -3 -3 -2 -2 -1 -1 -1 -------- Run | Scr Mat Min Exi Min Mat Gar Mat Gar Fac Was Fac Gar Fac Gar Fac Gar Fac Gar Fac Gar Fac Gar Fac Gar Res Gar Res Gar Acc Gar Acc Damage Taken 21380 | . 230 348 . 256 94 741 315 530 . . . 198 469 543 71 947 412 1164 224 833 13 1366 316 1635 2193 234 83 245 204 5418 2298 Core 4045 | . 78 72 . 65 . 241 63 145 . . . 24 73 139 . 133 23 238 51 18 . 200 39 443 301 17 25 48 17 1003 589 Absorbed by Shields 1435 | . . . . . . . . . . . . . . 13 . . . . 34 44 . . . 13 . 48 . 77 . 331 875 Core Remaining (%) 62 | 100 . . . 14 . . . 18 . . . . . 66 . 84 . . . 67 . . . 40 . 75 . 94 . . . Volleys Fired 696 | . 13 22 . 10 1 3 8 . . . . . 9 28 19 66 25 125 17 80 3 21 12 10 12 30 4 22 13 82 61 Largest 3 | . 2 2 . 2 1 1 1 . . . . . 1 1 2 2 2 1 1 1 1 1 1 1 1 1 1 1 1 3 2 Hottest 257 | . 40 60 . 60 33 33 23 . . . . . 75 75 70 104 70 66 66 66 30 40 40 40 50 50 50 50 50 257 111 Shots Fired 863 | . 26 32 . 18 1 3 8 . . . . . 9 28 22 82 41 125 18 82 3 21 12 10 12 30 4 22 13 155 86 Gun 390 | . 26 32 . 16 . 1 8 . . . . . 7 3 6 61 33 29 10 6 . 2 . . . . . . . 125 25 Cannon 94 | . . . . . . . . . . . . . . . . . . 25 1 40 . . . . . . . . . 4 24 Launcher 5 | . . . . 2 1 2 . . . . . . . . . . . . . . . . . . . . . . . . . Special 374 | . . . . . . . . . . . . . 2 25 16 21 8 71 7 36 3 19 12 10 12 30 4 22 13 26 37 Kinetic 378 | . 26 24 . 8 . 1 8 . . . . . . . 6 46 33 54 11 46 . 2 . . . . . . . 64 49 Thermal 72 | . . 7 . . . . . . . . . . 7 3 . 15 . . . . . . . . . . . . . 40 . Explosive 5 | . . . . 2 1 2 . . . . . . . . . . . . . . . . . . . . . . . . . Electromagnetic 34 | . . 1 . 8 . . . . . . . . . . . . . . . . . . . . . . . . . 25 . Robot Hit Streak 20 | . 9 7 . 6 5 1 9 . . . . . 11 7 7 12 9 15 20 7 8 12 5 9 6 9 5 11 9 17 20 Robot Miss Streak 4 | . 1 3 . 1 . 1 . . . . . . 3 3 2 2 3 2 2 4 . 1 1 1 1 1 . 2 1 3 4 Penetration Max 2 | . . . . . . . . . . . . . . . . . 1 . 2 . . . . . . . . . . . 1 Secondary Targets . | . . . . . . . . . . . . . . . . . . . . . . . . . . . . . . . . Shots Hit Robots 834 | . 19 25 . 17 3 9 19 22 5 11 . 4 20 26 17 55 30 90 15 45 3 41 20 21 65 26 4 22 10 140 50 Core Hits 220 | . 6 10 . 10 1 8 10 12 2 1 . 1 8 3 . 12 7 10 6 6 . 10 3 9 24 2 . 3 . 40 16 Critical Hits 56 | . . 1 . . . . . . . 2 . . . 1 . 7 9 4 7 . . 2 1 4 5 . . . . 5 8 Critical Kills 19 | . . . . . . . . . . . . . . . . 3 2 1 2 . . 1 . 4 3 . . . . . 3 Critical Parts Destroyed 33 | . . 1 . . . . . . . 1 . . . 1 . 4 6 3 5 . . 1 1 . 2 . . . . 3 5 Melee Attacks 384 | . . . . 4 5 12 17 34 5 11 . 5 27 20 1 9 . . . 6 2 41 17 23 77 6 . 9 . 53 . Impact 16 | . . . . . . . . . . . . . . . . . . . . . . . . . 15 . . . . 1 . Slashing 5 | . . . . . . . . . . . . . . . . . . . . . . . . . . . . . . 5 . Piercing 349 | . . . . 4 5 11 17 30 5 11 . 5 27 20 1 . . . . 6 2 41 17 23 62 6 . 9 . 47 . Sneak Attacks 31 | . . . . . . . 1 1 2 . . 1 3 3 1 9 . . . . . . 2 . 4 1 . . . 3 . Combat Hostiles 10 | . . . . . . . . 1 . . . 1 . 3 1 . . . . . . . . . . 1 . . . 3 . Follow-up Attacks 13 | . . . . . . . . . . . . . . . . . . . . . . . . . 10 . . . . 3 . Damage Inflicted 18567 | . 230 335 . 634 90 405 481 633 289 489 . 193 760 368 139 342 215 1056 177 714 . 1033 782 516 3473 211 . 214 . 3848 940 Guns 5118 | . 230 335 . 138 . . 79 . . . . . 138 . 36 342 215 643 135 32 . . . . . . . . . 2231 564 Cannons 1513 | . . . . . . . . . . . . . . . . . . 413 42 682 . . . . . . . . . . 376 Explosions 1225 | . . . . 378 28 188 . . . . . . . . . . . . . . . . . . 631 . . . . . . Melee 10694 | . . . . 118 62 217 402 633 289 489 . 193 622 368 103 . . . . . . 1033 782 499 2842 211 . 214 . 1617 . Ramming 17 | . . . . . . . . . . . . . . . . . . . . . . . . 17 . . . . . . . Kinetic 5101 | . 230 254 . 73 . . 79 . . . . . . . 36 193 215 1056 177 714 . . . . . . . . . 1134 940 Thermal 1269 | . . 68 . 193 . . . . . . . . 138 . . 149 . . . . . . . . . . . . . 721 . Explosive 1032 | . . . . 185 28 188 . . . . . . . . . . . . . . . . . . 631 . . . . . . Electromagnetic 454 | . . 13 . 65 . . . . . . . . . . . . . . . . . . . . . . . . . 376 . Impact 672 | . . . . . . . . . . . . . . . . . . . . . . . . . 672 . . . . . . Slashing 130 | . . . . . . . . . . . . . . . . . . . . . . . . . . . . . . 130 . Piercing 9892 | . . . . 118 62 217 402 633 289 489 . 193 622 368 103 . . . . . . 1033 782 499 2170 211 . 214 . 1487 . Highest Corruption 23 | . . . . . . . . 1 . . . . . . 1 1 . 4 6 6 . . 1 1 19 19 10 10 . 7 23 Average Corruption 5 | . . . . . . . . 1 . . . . . . 1 1 . 3 5 6 . . 1 1 13 19 10 10 . 5 9 Corruption Purged . | . . . . . . . . . . . . . . . . . . . . . . . . . . . . . . . . Effects 437 | . . . . . . . . 4 . . . . . . . 10 . 62 20 78 . . 1 7 30 61 4 24 . 91 45 Message Errors 99 | . . . . . . . . 1 . . . . . . . 7 . 14 1 19 . . 1 4 4 9 3 3 . 21 12 Matter Fused 81 | . . . . . . . . . . . . . . . . . . 15 4 20 . . . . 7 7 . 5 . 17 6 Heat Flow Errors 45 | . . . . . . . . . . . . . . . . . . 9 6 10 . . . . 2 1 . 3 . 9 5 Energy Discharges 44 | . . . . . . . . 2 . . . . . . . . . 8 1 9 . . . 3 . 2 . 1 . 12 6 Parts Rejected 4 | . . . . . . . . . . . . . . . . . . . . . . . . . 1 2 . . . 1 . Data Loss (minor) 52 | . . . . . . . . . . . . . . . . 3 . 9 4 11 . . . . 2 7 . 1 . 12 3 Data Loss (major) 6 | . . . . . . . . . . . . . . . . . . . 1 1 . . . . . 3 . . . 1 . Misfires 9 | . . . . . . . . . . . . . . . . . . . 1 3 . . . . . . . . . 4 1 Alerts 3 | . . . . . . . . . . . . . . . . . . . . . . . . . 2 . . 1 . . . Misdirections 38 | . . . . . . . . . . . . . . . . . . . . . . . . . 5 24 1 6 . . 2 Targeting Errors 53 | . . . . . . . . 1 . . . . . . . . . 7 2 4 . . . . 7 6 . 4 . 12 10 Weapon Failures 3 | . . . . . . . . . . . . . . . . . . . . 1 . . . . . . . . . 2 . Overload Shots . | . . . . . . . . . . . . . . . . . . . . . . . . . . . . . . . . Overflow Damage 922 | . . . . 4 . 13 9 . 38 . . . 125 . 67 . . . . 113 . 21 127 4 362 . . . . 3 36 Projectiles 149 | . . . . . . . . . . . . . . . . . . . . 113 . . . . . . . . . . 36 Explosions 56 | . . . . 4 . . . . . . . . . . . . . . . . . . . . 52 . . . . . . Melee 717 | . . . . . . 13 9 . 38 . . . 125 . 67 . . . . . . 21 127 4 310 . . . . 3 . Knockbacks 13 | . . . . . . . . . . . . . . . . . . . . 7 . . . 1 2 . . . . . 3 Impact 3 | . . . . . . . . . . . . . . . . . . . . . . . . 1 2 . . . . . . Kinetic 8 | . . . . . . . . . . . . . . . . . . . . 6 . . . . . . . . . . 2 Secondary 2 | . . . . . . . . . . . . . . . . . . . . 1 . . . . . . . . . . 1 Self-Inflicted Damage 85 | . . . . 79 . . . . . . . . . . . . . . . . . . . 6 . . . . . . . Shots 3 | . . . . 3 . . . . . . . . . . . . . . . . . . . . . . . . . . . Rammed 1 | . . . . . . . . . . . . . . . . . . . . . . . . 1 . . . . . . . Targets Rammed 2 | . . . . . . . . . . . . . . . . . . . . . . . . 2 . . . . . . . Kicked 1 | . . . . . . . . . . . . . . . . . . . . . . . . 1 . . . . . . . Crushed . | . . . . . . . . . . . . . . . . . . . . . . . . . . . . . . . . Highest Temperature 341 | . 8 28 . 66 5 61 28 17 . . . 8 122 102 7 246 54 243 258 341 18 46 74 34 262 248 119 302 140 260 266 Average Temperature 59 | . 2 10 . 28 3 16 13 16 . . . 7 54 25 7 60 19 52 90 85 12 17 28 18 80 61 25 64 42 87 56 Received Heat Transfer 2509 | . 129 192 . 84 27 387 135 216 . . . 54 72 75 18 249 81 84 39 105 . 180 39 120 72 32 . 35 . 68 16 Effects 4 | . . . . . . . . . . . . . . . . . . . . 2 . . . . . . . 1 . 1 . Shutdowns 1 | . . . . . . . . . . . . . . . . . . . . 1 . . . . . . . . . . . Interference 1 | . . . . . . . . . . . . . . . . . . . . . . . . . . . . . . 1 . Short Circuit 1 | . . . . . . . . . . . . . . . . . . . . 1 . . . . . . . . . . . Damage (minor) 1 | . . . . . . . . . . . . . . . . . . . . . . . . . . . . 1 . . . Siege Activations . | . . . . . . . . . . . . . . . . . . . . . . . . . . . . . . . . Robots Corrupted . | . . . . . . . . . . . . . . . . . . . . . . . . . . . . . . . . Combat Hostiles . | . . . . . . . . . . . . . . . . . . . . . . . . . . . . . . . . Parts Fried 4 | . . . . . . . . . . . . . . . . . . . . . . . . . 1 . . . . 3 . Impact Corruptions 8 | . . . . . . . . . . . . . . . . . . . . . . . . . 8 . . . . . . Robots Melted . | . . . . . . . . . . . . . . . . . . . . . . . . . . . . . . . . Combat Hostiles . | . . . . . . . . . . . . . . . . . . . . . . . . . . . . . . . . Parts Melted 12 | . . 1 . . . . . . . . . 2 2 . . . 3 . . . . . . . 2 . . . . 2 . Heat Transferred 1473 | . . 150 . 250 . . . . . . . . 222 . . 141 . . . . . . . . . . . . . 710 . Parts Sabotaged . | . . . . . . . . . . . . . . . . . . . . . . . . . . . . . . . . Parts Stolen . | . . . . . . . . . . . . . . . . . . . . . . . . . . . . . . . . Parts Stripped . | . . . . . . . . . . . . . . . . . . . . . . . . . . . . . . . . Power Chain Reactions 2 | . . . . 2 . . . . . . . . . . . . . . . . . . . . . . . . . . . Missiles Intercepted . | . . . . . . . . . . . . . . . . . . . . . . . . . . . . . . . . Alert | -11 -10 -10 -10 -9 -8 -8 -8 -8 -7 -7 -7 -7 -7 -7 -6 -6 -5 -5 -5 -5 -4 -4 -4 -4 -3 -3 -2 -2 -1 -1 -1 ------- Run | Scr Mat Min Exi Min Mat Gar Mat Gar Fac Was Fac Gar Fac Gar Fac Gar Fac Gar Fac Gar Fac Gar Fac Gar Res Gar Res Gar Acc Gar Acc Peak Influence 1524 | . 100 107 . 125 59 213 422 616 335 117 81 660 1007 1124 665 977 641 1158 1293 1436 1262 1524 928 1009 669 939 528 707 1213 1394 1259 Initial 922 | . . 39 . . 27 38 103 274 323 117 81 56 346 644 590 443 512 370 607 800 753 883 794 511 567 484 528 382 424 922 836 Average 818 | . 28 89 . 57 39 143 243 407 332 117 81 477 715 946 433 774 467 945 999 1176 842 1164 800 768 513 763 516 574 493 1194 973 Maximum Alert Level 4 | . . . . . . 1 2 2 1 . . 2 3 4 2 3 2 4 4 4 4 4 3 3 2 3 2 3 4 4 4 Low Security (%) 6 | 100 100 100 . 100 100 79 42 . . 100 100 8 . . 5 . . . . . . . . . . . . . . . . Level 1 6 | . . . . . . 20 42 46 100 . . 24 6 . 37 . 23 3 . . . . . . 12 . . 14 15 . . Level 2 19 | . . . . . . . 14 53 . . . 66 32 2 57 9 76 9 21 . . . 3 18 87 23 100 57 80 . . Level 3 41 | . . . . . . . . . . . . . 61 77 . 90 . 48 43 35 97 52 96 81 . 76 . 28 1 17 68 Level 4 25 | . . . . . . . . . . . . . . 20 . . . 38 34 64 2 47 . . . . . . 2 82 31 Level 5 . | . . . . . . . . . . . . . . . . . . . . . . . . . . . . . . . . High Security . | . . . . . . . . . . . . . . . . . . . . . . . . . . . . . . . . Max Security . | . . . . . . . . . . . . . . . . . . . . . . . . . . . . . . . . Squads Dispatched 51 | . 1 . . 1 . . 1 . 1 . . . 4 . 6 . 3 . 3 . 7 . 3 . 4 . . . 5 . 12 Investigation 1 | . . . . 1 . . . . . . . . . . . . . . . . . . . . . . . . . . . Extermination 12 | . . . . . . . . . . . . . 1 . 1 . 1 . 1 . 1 . 1 . 2 . . . 2 . 2 Reinforcement 12 | . 1 . . . . . 1 . 1 . . . 1 . 1 . 1 . 1 . . . 1 . 1 . . . 1 . 2 Assault 16 | . . . . . . . . . . . . . 2 . 1 . 1 . 1 . 3 . 1 . 1 . . . 1 . 5 Garrison 10 | . . . . . . . . . . . . . . . 3 . . . . . 3 . . . . . . . 1 . 3 Intercept . | . . . . . . . . . . . . . . . . . . . . . . . . . . . . . . . . Construction Impeded 4 | . . . . . . . . . . . . . . . . . 1 . . . . . . . 1 . . . 1 . 1 Haulers Reinforced 3 | . . . . . . . . . 1 . . . . . . . . . . . . . 1 . . . . . . . 1 Stealth | -11 -10 -10 -10 -9 -8 -8 -8 -8 -7 -7 -7 -7 -7 -7 -6 -6 -5 -5 -5 -5 -4 -4 -4 -4 -3 -3 -2 -2 -1 -1 -1 --------- Run | Scr Mat Min Exi Min Mat Gar Mat Gar Fac Was Fac Gar Fac Gar Fac Gar Fac Gar Fac Gar Fac Gar Fac Gar Res Gar Res Gar Acc Gar Acc Distress Signals 13 | . . . . . . . . . . . . . 1 . . . 2 . . . . . 2 . . . . 1 3 . 4 Communications Jammed 111 | . . . . . . . . . . . . . . . . . . . . 3 . . 22 . 11 18 . . 42 . 15 Distress Signals 109 | . . . . . . . . . . . . . . . . . . . . 3 . . 22 . 11 18 . . 42 . 13 Times Spotted 538 | . 4 4 . 11 5 16 21 19 . . . 9 30 22 15 32 13 37 10 25 10 25 18 24 30 24 3 13 11 38 69 Peak Tracking Total 12 | . 2 2 . 3 5 12 9 5 . . . 6 6 3 3 10 3 8 5 3 7 4 5 5 6 4 3 3 4 3 10 Tactical Retreats 45 | . . . . 3 . 2 1 1 . . . . 9 3 2 4 . . 2 1 . 3 . 2 1 . . . . 9 2 Traps | -11 -10 -10 -10 -9 -8 -8 -8 -8 -7 -7 -7 -7 -7 -7 -6 -6 -5 -5 -5 -5 -4 -4 -4 -4 -3 -3 -2 -2 -1 -1 -1 ------- Run | Scr Mat Min Exi Min Mat Gar Mat Gar Fac Was Fac Gar Fac Gar Fac Gar Fac Gar Fac Gar Fac Gar Fac Gar Res Gar Res Gar Acc Gar Acc Traps Triggered 89 | . . . . . . 9 . 9 1 . . 8 1 5 . 12 . 7 . 8 . 6 2 2 3 4 1 2 . 7 2 Indirectly . | . . . . . . . . . . . . . . . . . . . . . . . . . . . . . . . . Trap Hack Attempts . | . . . . . . . . . . . . . . . . . . . . . . . . . . . . . . . . Triggered . | . . . . . . . . . . . . . . . . . . . . . . . . . . . . . . . . Disarmed . | . . . . . . . . . . . . . . . . . . . . . . . . . . . . . . . . Reprogrammed . | . . . . . . . . . . . . . . . . . . . . . . . . . . . . . . . . Reused . | . . . . . . . . . . . . . . . . . . . . . . . . . . . . . . . . Traps Extracted . | . . . . . . . . . . . . . . . . . . . . . . . . . . . . . . . . Installed . | . . . . . . . . . . . . . . . . . . . . . . . . . . . . . . . . Triggered 3 | . . . . . . . . . . . . . . . . . . . . . . . . . . . . . . 3 . Exploded 1 | . . . 1 . . . . . . . . . . . . . . . . . . . . . . . . . . . . Machines | -11 -10 -10 -10 -9 -8 -8 -8 -8 -7 -7 -7 -7 -7 -7 -6 -6 -5 -5 -5 -5 -4 -4 -4 -4 -3 -3 -2 -2 -1 -1 -1 ---------- Run | Scr Mat Min Exi Min Mat Gar Mat Gar Fac Was Fac Gar Fac Gar Fac Gar Fac Gar Fac Gar Fac Gar Fac Gar Res Gar Res Gar Acc Gar Acc Machines Disabled 49 | . . . . 1 . 1 . 2 . . . 1 . 4 . 3 3 6 . 4 3 6 . 2 1 4 . 2 2 4 . Max in Single Turn 3 | . . . . 1 . 1 . 1 . . . 1 . 1 . 1 3 1 . 1 . 2 . 1 1 1 . 1 . 1 . Garrison Relay 38 | . . . . . . 1 . 2 . . . 1 . 4 . 3 . 7 . 4 . 4 . 2 . 4 . 2 . 4 . Phase Generator 1 | . . . . . . . . . . . . . . . . . . . . . . 1 . . . . . . . . . Machines Sabotaged . | . . . . . . . . . . . . . . . . . . . . . . . . . . . . . . . . Garrisons Compromised . | . . . . . . . . . . . . . . . . . . . . . . . . . . . . . . . . Overloaded Fab Kills . | . . . . . . . . . . . . . . . . . . . . . . . . . . . . . . . . Fab Network Shutdowns 3 | . . . . . . . . . . . . . 1 . 1 . . . 1 . . . . . . . . . . . . Hacking | -11 -10 -10 -10 -9 -8 -8 -8 -8 -7 -7 -7 -7 -7 -7 -6 -6 -5 -5 -5 -5 -4 -4 -4 -4 -3 -3 -2 -2 -1 -1 -1 --------- Run | Scr Mat Min Exi Min Mat Gar Mat Gar Fac Was Fac Gar Fac Gar Fac Gar Fac Gar Fac Gar Fac Gar Fac Gar Res Gar Res Gar Acc Gar Acc Machines Accessed 33 | . . 1 1 1 1 . 3 . . . 1 . 5 . 4 . 2 . 2 . 1 . 2 . 3 . 1 . 5 . . Terminals 10 | . . 1 . . . . 1 . . . . . 3 . . . 1 . . . . . . . 1 . . . 3 . . Fabricators 8 | . . . . . . . . . . . . . 1 . 3 . . . 1 . . . 1 . 1 . . . 1 . . Repair Stations 1 | . . . . . . . 1 . . . . . . . . . . . . . . . . . . . . . . . . Recycling Units . | . . . . . . . . . . . . . . . . . . . . . . . . . . . . . . . . Scanalyzers . | . . . . . . . . . . . . . . . . . . . . . . . . . . . . . . . . Garrison Access 12 | . . . . . 1 . 1 . . . 1 . 1 . 1 . 1 . 1 . 1 . 1 . 1 . 1 . 1 . . Total Hacks 66 | . . 2 1 1 2 . 7 . . . 1 . 13 . 14 . 3 . 3 . 1 . 3 . 5 . 2 . 8 . . Successful 37 | . . 1 1 1 1 . 3 . . . 1 . 5 . 7 . 1 . 3 . 1 . 2 . 5 . 1 . 4 . . Failed 29 | . . 1 . . 1 . 4 . . . . . 8 . 7 . 2 . . . . . 1 . . . 1 . 4 . . Catastrophic 6 | . . . . . . . 1 . . . . . 3 . 1 . . . . . . . . . . . . . 1 . . Database Lockouts . | . . . . . . . . . . . . . . . . . . . . . . . . . . . . . . . . Manual 26 | . . 2 1 . . . 2 . . . . . 6 . 9 . 1 . 1 . . . . . 2 . 1 . 1 . . Terminals 17 | . . 2 . . . . 2 . . . . . 6 . . . 1 . . . . . . . 1 . . . 5 . . Fabricators 22 | . . . . . . . . . . . . . 6 . 8 . . . 2 . . . 2 . 3 . . . 1 . . Repair Stations 4 | . . . . . . . 4 . . . . . . . . . . . . . . . . . . . . . . . . Recycling Units . | . . . . . . . . . . . . . . . . . . . . . . . . . . . . . . . . Scanalyzers . | . . . . . . . . . . . . . . . . . . . . . . . . . . . . . . . . Garrison Access 21 | . . . . . 2 . 1 . . . 1 . 1 . 6 . 2 . 1 . 1 . 1 . 1 . 2 . 2 . . Terminal Hacks 6 | . . 1 1 1 . . . . . . . . 1 . . . . . . . . . . . . . . . 2 . . Record 2 | . . . . . . . . . . . . . . . . . . . . . . . . . . . . . 2 . . Robot Schematic 1 | . . . . . . . . . . . . . 1 . . . . . . . . . . . . . . . . . . Open Door 1 | . . . . 1 . . . . . . . . . . . . . . . . . . . . . . . . . . . Branch Access Points 1 | . . 1 . . . . . . . . . . . . . . . . . . . . . . . . . . . . . EX-Prototype ID Bank 1 | . . . 1 . . . . . . . . . . . . . . . . . . . . . . . . . . . . Fabricator Hacks 9 | . . . . . . . . . . . . . 2 . 3 . . . 1 . . . 1 . 2 . . . . . . Load Schematic 4 | . . . . . . . . . . . . . 1 . 1 . . . . . . . 1 . 1 . . . . . . Build 5 | . . . . . . . . . . . . . 1 . 2 . . . 1 . . . . . 1 . . . . . . Repair Station Hacks 2 | . . . . . . . 2 . . . . . . . . . . . . . . . . . . . . . . . . Scan Component 1 | . . . . . . . 1 . . . . . . . . . . . . . . . . . . . . . . . . Repair 1 | . . . . . . . 1 . . . . . . . . . . . . . . . . . . . . . . . . Recycling Unit Hacks . | . . . . . . . . . . . . . . . . . . . . . . . . . . . . . . . . Scanalyzer . | . . . . . . . . . . . . . . . . . . . . . . . . . . . . . . . . Garrison Access Hacks 12 | . . . . . 1 . 1 . . . 1 . 1 . 1 . 1 . 1 . 1 . 1 . 1 . 1 . 1 . . Unlock Access 12 | . . . . . 1 . 1 . . . 1 . 1 . 1 . 1 . 1 . 1 . 1 . 1 . 1 . 1 . . Unauthorized Hacks 8 | . . . . . . . . . . . . . 1 . 3 . . . 1 . . . . . 2 . . . 1 . . Terminals 1 | . . . . . . . . . . . . . . . . . . . . . . . . . 1 . . . . . . Detonate 1 | . . . . . . . . . . . . . . . . . . . . . . . . . 1 . . . . . . Fabricators 5 | . . . . . . . . . . . . . 1 . 2 . . . 1 . . . . . 1 . . . . . . Siphon 5 | . . . . . . . . . . . . . 1 . 2 . . . 1 . . . . . 1 . . . . . . Repair Stations . | . . . . . . . . . . . . . . . . . . . . . . . . . . . . . . . . Recycling Units . | . . . . . . . . . . . . . . . . . . . . . . . . . . . . . . . . Scanalyzers . | . . . . . . . . . . . . . . . . . . . . . . . . . . . . . . . . Garrison Access 2 | . . . . . . . . . . . . . . . 1 . . . . . . . . . . . . . 1 . . Reprogram 2 | . . . . . . . . . . . . . . . 1 . . . . . . . . . . . . . 1 . . Data Cores Recovered . | . . . . . . . . . . . . . . . . . . . . . . . . . . . . . . . . Used . | . . . . . . . . . . . . . . . . . . . . . . . . . . . . . . . . Hacking Detections 20 | . . 1 . . . . 2 . . . . . 3 . 3 . 2 . . . 1 . 1 . 1 . 1 . 5 . . Full Trace Events . | . . . . . . . . . . . . . . . . . . . . . . . . . . . . . . . . Feedback Events . | . . . . . . . . . . . . . . . . . . . . . . . . . . . . . . . . Feedback Blocked . | . . . . . . . . . . . . . . . . . . . . . . . . . . . . . . . . Robot Schematics Acquired 1 | . . . . . . . . . . . . . 1 . . . . . . . . . . . . . . . . . . Robots Built 10 | . . . . . . . . . . . . . 3 . 3 . . . 1 . . . . . 3 . . . . . . Matter 909 | . . . . . . . . . . . . . 186 . 285 . . . 252 . . . . . 186 . . . . . . Time 484 | . . . . . . . . . . . . . 99 . 152 . . . 134 . . . . . 99 . . . . . . Total Robot Build Rating 31 | . . . . . . . . . . . . . 6 . 15 . . . 4 . . . . . 6 . . . . . . Part Schematics Acquired . | . . . . . . . . . . . . . . . . . . . . . . . . . . . . . . . . Parts Built 2 | . . . . . . . . . . . . . . . 2 . . . . . . . . . . . . . . . . Matter 212 | . . . . . . . . . . . . . . . 212 . . . . . . . . . . . . . . . . Time 53 | . . . . . . . . . . . . . . . 53 . . . . . . . . . . . . . . . . Total Part Build Rating 12 | . . . . . . . . . . . . . . . 12 . . . . . . . . . . . . . . . . Parts Repaired 1 | . . . . . . . 1 . . . . . . . . . . . . . . . . . . . . . . . . Time 38 | . . . . . . . 38 . . . . . . . . . . . . . . . . . . . . . . . . Parts Recycled . | . . . . . . . . . . . . . . . . . . . . . . . . . . . . . . . . Recycled Matter . | . . . . . . . . . . . . . . . . . . . . . . . . . . . . . . . . Retrieved Matter . | . . . . . . . . . . . . . . . . . . . . . . . . . . . . . . . . Retrieved Components . | . . . . . . . . . . . . . . . . . . . . . . . . . . . . . . . . Parts Scanalyzed . | . . . . . . . . . . . . . . . . . . . . . . . . . . . . . . . . Part Schematics Acquired . | . . . . . . . . . . . . . . . . . . . . . . . . . . . . . . . . Parts Damaged . | . . . . . . . . . . . . . . . . . . . . . . . . . . . . . . . . Bothacking | -11 -10 -10 -10 -9 -8 -8 -8 -8 -7 -7 -7 -7 -7 -7 -6 -6 -5 -5 -5 -5 -4 -4 -4 -4 -3 -3 -2 -2 -1 -1 -1 ------------ Run | Scr Mat Min Exi Min Mat Gar Mat Gar Fac Was Fac Gar Fac Gar Fac Gar Fac Gar Fac Gar Fac Gar Fac Gar Res Gar Res Gar Acc Gar Acc Used RIF Installer 12 | . . . . . . 1 . 1 . . . 1 . 1 . 1 . 1 . 1 . 1 . 1 . 1 . 1 . 1 . Coupler Efficiency 1 | . . . . . . . . . . . . 1 . . . . . . . . . . . . . . . . . . . Command Fork 2 | . . . . . . . . . . . . . . 1 . . . . . . . . . . . 1 . . . . . Signal Jammer 1 | . . . . . . . . . . . . . . . . . . 1 . . . . . . . . . . . . . Zone Cloak 1 | . . . . . . . . . . . . . . . . . . . . . . . . . . . . . . 1 . Robot Detection 1 | . . . . . . . . . . . . . . . . . . . . . . 1 . . . . . . . . . Watcher Feeds 1 | . . . . . . . . . . . . . . . . 1 . . . . . . . . . . . . . . . Structural Interface 1 | . . . . . . . . . . . . . . . . . . . . . . . . . . . . 1 . . . Program Shield 1 | . . . . . . . . 1 . . . . . . . . . . . . . . . . . . . . . . . Autooverride 1 | . . . . . . . . . . . . . . . . . . . . 1 . . . . . . . . . . . Autoassimilate 1 | . . . . . . . . . . . . . . . . . . . . . . . . 1 . . . . . . . Robots Hacked 203 | . . . . . . . . 2 . . . . 1 16 8 11 3 21 3 20 3 10 7 7 10 19 2 12 7 13 28 Non-combat 15 | . . . . . . . . . . . . . . . 3 1 2 . 1 1 . . . . 1 1 . . 3 . 2 Combat 188 | . . . . . . . . 2 . . . . 1 16 5 10 1 21 2 19 3 10 7 7 9 18 2 12 4 13 26 Autooverrided 19 | . . . . . . . . . . . . . . . . . . . . 6 1 3 1 1 3 1 . . . 1 2 Autoassimilated 16 | . . . . . . . . . . . . . . . . . . . . . . . . . 1 4 . 1 1 1 8 Robot Hacks Applied 198 | . . . . . . . . 2 . . . . 2 18 10 11 6 22 7 22 2 10 7 6 7 15 2 11 7 11 20 parse_system 15 | . . . . . . . . . . . . . . . 2 . 1 . . 10 . 1 . . . 1 . . . . . hold_bot 1 | . . . . . . . . . . . . . . . . . . . . . . . . . . . . . . . 1 drop_inventory 2 | . . . . . . . . . . . . . . . 1 . . . 1 . . . . . . . . . . . . purge_threat 2 | . . . . . . . . . . . . . . . 2 . . . . . . . . . . . . . . . . map_route 2 | . . . . . . . . . . . . . . . 1 . . . . . . . . . . . . . 1 . . find_garrison 5 | . . . . . . . . . . . . . 1 . . . 1 . 1 . . . 1 . 1 . . . . . . link_fov 1 | . . . . . . . . . . . . . . . . . . . . . . . . . . . . . 1 . . link_complan 1 | . . . . . . . . . . . . . . . . . . . 1 . . . . . . . . . . . . overload_power 5 | . . . . . . . . . . . . . . . . . 1 . 1 . . . . . . . . . 1 . 2 amplify_resonance 4 | . . . . . . . . . . . . . . 1 . . . . . . . . . . 2 . . . . . 1 disable_weapons 8 | . . . . . . . . . . . . . . 4 . 1 . . 1 . . 1 1 . . . . . . . . reboot_system 10 | . . . . . . . . . . . . . 1 1 . 1 . 2 1 1 . . . . 1 . . 1 . . 1 go_dormant 2 | . . . . . . . . . . . . . . . 1 . . 1 . . . . . . . . . . . . . overwrite_iff 11 | . . . . . . . . . . . . . . 4 . . . 2 1 2 . . . . . 1 . . . . 1 streamctrl_low 1 | . . . . . . . . . . . . . . . . . 1 . . . . . . . . . . . . . . streamctrl_high 1 | . . . . . . . . . . . . . . . . . . . . . . . . . . . . . . 1 . formatsys_low 2 | . . . . . . . . . . . . . . . . . 1 . . . . . . . . . . . . . 1 formatsys_high 125 | . . . . . . . . 2 . . . . . 8 3 9 1 17 . 9 2 8 5 6 3 13 2 10 4 10 13 Relay Couplers Released 159 | . . . . . . 3 . 8 . . . 3 . 14 . 13 4 29 . 17 . 16 . 8 3 16 . 8 . 17 . Machine Destruction 152 | . . . . . . 3 . 8 . . . 3 . 14 . 13 . 29 . 17 . 16 . 8 . 16 . 8 . 17 . Programmers 7 | . . . . . . . . . . . . . . . . . 4 . . . . . . . 3 . . . . . . Attached 93 | . . . . . . . . 3 . . . 2 . 6 1 7 2 13 . 8 1 9 . 10 3 11 1 4 1 9 2 Robots Rewired 18 | . . . . . . . . . 1 . . . . . . 5 . 12 . . . . . . . . . . . . . Allies Hacked 1 | . . . . . . . . . . . . . . . . . 1 . . . . . . . . . . . . . . Hacks Repelled . | . . . . . . . . . . . . . . . . . . . . . . . . . . . . . . . . Allies | -11 -10 -10 -10 -9 -8 -8 -8 -8 -7 -7 -7 -7 -7 -7 -6 -6 -5 -5 -5 -5 -4 -4 -4 -4 -3 -3 -2 -2 -1 -1 -1 -------- Run | Scr Mat Min Exi Min Mat Gar Mat Gar Fac Was Fac Gar Fac Gar Fac Gar Fac Gar Fac Gar Fac Gar Fac Gar Res Gar Res Gar Acc Gar Acc Total Allies 256 | . . . . . . . . 2 1 21 . . 3 12 9 17 3 35 2 16 3 9 7 10 10 25 2 13 7 17 32 Largest Group 29 | . . . . . . . . 1 1 21 21 16 5 6 9 12 13 29 24 18 15 13 6 10 11 13 14 21 21 9 16 Highest-Rated Group 1116 | . . . . . . . . 29 16 494 494 394 155 140 240 358 370 831 686 598 608 446 273 253 237 571 601 1116 1030 472 887 Highest-Rated Ally 147 | . . . . . . . . 29 16 31 31 31 31 32 32 47 49 49 49 81 115 49 56 115 64 115 64 147 69 64 69 Total Orders 193 | . . . . . . . . 3 . . . . . 15 1 16 5 42 4 33 10 13 2 11 . 6 1 12 5 14 . STAY 113 | . . . . . . . . 1 . . . . . 9 1 11 2 21 3 20 5 9 1 6 . 3 1 7 4 9 . ROAM 3 | . . . . . . . . . . . . . . . . . . 1 . . . . . 1 . . . . . 1 . FOLLOW 70 | . . . . . . . . 1 . . . . . 6 . 4 2 20 1 13 4 3 1 4 . 2 . 4 1 4 . GUARD 3 | . . . . . . . . 1 . . . . . . . 1 . . . . 1 . . . . . . . . . . AID 4 | . . . . . . . . . . . . . . . . . 1 . . . . 1 . . . 1 . 1 . . . Ally Attacks 1552 | . . . . . . . . 18 . . . 103 53 42 44 67 42 121 89 104 46 106 60 24 83 64 8 87 111 53 227 Total Damage 43702 | . . . . . . . . 312 . . . 1384 797 590 1140 1611 1177 2738 2370 2446 1886 3198 1659 796 1997 2421 155 2553 5479 1841 7152 Kills 237 | . . . . . . . . 4 . . . 21 4 9 7 14 11 17 13 12 11 10 7 9 10 9 1 8 23 6 31 Allies Corrupted 15 | . . . . . . . . . . . . . . . . 1 . . . . . . 1 . 1 1 1 . 4 2 4 Allies Melted 1 | . . . . . . . . . . . . . . . . . . . . . . . . . 1 . . . . . . Intel | -11 -10 -10 -10 -9 -8 -8 -8 -8 -7 -7 -7 -7 -7 -7 -6 -6 -5 -5 -5 -5 -4 -4 -4 -4 -3 -3 -2 -2 -1 -1 -1 ------- Run | Scr Mat Min Exi Min Mat Gar Mat Gar Fac Was Fac Gar Fac Gar Fac Gar Fac Gar Fac Gar Fac Gar Fac Gar Res Gar Res Gar Acc Gar Acc Robot Analysis Total . | . . . . . . . . . . . . . . . . . . . . . . . . . . . . . . . . Derelict Logs Recovered 1 | . . 1 . . . . . . . . . . . . . . . . . . . . . . . . . . . . . Drone Launches . | . . . . . . . . . . . . . . . . . . . . . . . . . . . . . . . . Drone Recoveries . | . . . . . . . . . . . . . . . . . . . . . . . . . . . . . . . . Exploration | -11 -10 -10 -10 -9 -8 -8 -8 -8 -7 -7 -7 -7 -7 -7 -6 -6 -5 -5 -5 -5 -4 -4 -4 -4 -3 -3 -2 -2 -1 -1 -1 ------------- Run | Scr Mat Min Exi Min Mat Gar Mat Gar Fac Was Fac Gar Fac Gar Fac Gar Fac Gar Fac Gar Fac Gar Fac Gar Res Gar Res Gar Acc Gar Acc Turns Passed 31080 | 37 151 333 324 482 221 317 308 763 163 248 92 278 1028 2360 1126 2058 1234 3438 955 2727 393 2202 640 1463 1167 783 110 659 750 3183 1087 Spaces Moved 20151 | 31 105 183 216 260 122 449 357 597 209 342 56 297 1551 1019 651 1249 636 1979 420 1298 180 1204 394 785 684 961 124 739 678 1821 554 Core 111 | 4 . . . . . . . 1 . . . . . 15 . . . . . . . . . 76 4 . . . . 5 6 Treads 632 | . . . . . . . . . . . . . . . . . . . . . . . . 200 432 . . . . . . Legs 11381 | . . 140 216 260 67 . . . . . . . . 848 651 1249 636 1979 420 1298 180 1204 394 509 . . . . . 783 547 Wheels 176 | 27 105 43 . . . . . . . . . . . . . . . . . . . . . . . . . . . . 1 Hover 3783 | . . . . . . . . . . . . . . . . . . . . . . . . . 248 961 124 739 678 1033 . Flight 4068 | . . . . . 55 449 357 596 209 342 56 297 1551 156 . . . . . . . . . . . . . . . . . Fastest Speed 43 | 50 90 110 150 130 50 50 50 50 50 50 50 50 50 50 120 120 120 120 150 150 150 150 120 120 52 43 43 43 43 63 140 Average Speed 112 | 87 95 140 150 142 110 50 50 50 50 50 50 50 50 201 129 120 144 134 150 150 150 151 131 163 124 46 67 49 67 103 167 Slowest Speed 2300 | 100 110 180 150 160 160 50 50 350 50 50 50 50 50 1000 270 120 150 180 150 150 150 180 180 550 400 111 111 111 68 1100 2300 Overloaded Moves . | . . . . . . . . . . . . . . . . . . . . . . . . . . . . . . . . Propulsion Burnouts . | . . . . . . . . . . . . . . . . . . . . . . . . . . . . . . . . Robots Hopped 25 | . . . . . . 5 5 . 1 2 . . 11 . . . . . . . . . 1 . . . . . . . . Cave-ins Triggered 1 | . . . . . . . . . . . . . . . . . . . . . . . . . . . . . . . 1 Exploration Rate (%) 43 | 3 25 30 63 57 18 64 50 74 7 94 1 47 41 76 11 73 11 81 8 81 3 96 10 52 18 82 3 60 19 97 21 Regions Visited 31 Branch Regions 3 Pre-discovered Areas . | . . . . . . . . . . . . . . . . . . . . . . . . . . . . . . . . Known Exits Taken 12 | . . . . . 1 . 1 . . . 1 . 1 . 1 . 1 . 1 . 1 . 1 . 1 . 1 . 1 . . Unknown Exits Taken 5 | 1 1 1 1 1 . . . . . . . . . . . . . . . . . . . . . . . . . . . Scrap Searched 1 | . . . . 1 . . . . . . . . . . . . . . . . . . . . . . . . . . . Spaces Dug 42 | . . . . . 2 . 2 . . . . . 3 . . . . 5 . 8 2 . 4 . 5 . . . . 6 5 Terrain Destroyed 242 | . . . . 34 9 18 2 . . . . . 3 . . . 34 6 . 20 2 84 4 . 7 . . . . 11 8 Melee 27 | . . . . . 2 . 2 . . . . . 3 . . . . . . 4 2 . 4 . 5 . . . . 5 . Projectile 36 | . . . . . . . . . . . . . . . . . . 6 . 16 . . . . . . . . . 6 8 AOE 179 | . . . . 34 7 18 . . . . . . . . . . 34 . . . . 84 . . 2 . . . . . . Terrain Rammed . | . . . . . . . . . . . . . . . . . . . . . . . . . . . . . . . . Walls Destroyed . | . . . . . . . . . . . . . . . . . . . . . . . . . . . . . . . . Machines Disabled . | . . . . . . . . . . . . . . . . . . . . . . . . . . . . . . . . Actions | -11 -10 -10 -10 -9 -8 -8 -8 -8 -7 -7 -7 -7 -7 -7 -6 -6 -5 -5 -5 -5 -4 -4 -4 -4 -3 -3 -2 -2 -1 -1 -1 --------- Run | Scr Mat Min Exi Min Mat Gar Mat Gar Fac Was Fac Gar Fac Gar Fac Gar Fac Gar Fac Gar Fac Gar Fac Gar Res Gar Res Gar Acc Gar Acc Total 27394 | 37 128 225 216 348 199 515 447 1010 258 402 119 418 1745 1285 920 1729 912 2689 733 2020 301 1490 475 913 864 1284 150 1016 974 2902 670 Wait 5105 | . 3 11 . 64 63 30 56 350 32 39 64 50 146 160 212 307 235 492 294 549 109 158 39 64 47 231 21 196 269 782 32 Move 20061 | 30 104 182 215 259 121 437 346 595 207 337 55 295 1530 1017 650 1247 635 1977 419 1296 179 1202 391 783 683 959 123 737 677 1819 554 Hop 23 | . . . . . . 5 5 . 1 2 . . 9 . . . . . . . . . 1 . . . . . . . . Pick Up 157 | 1 2 1 1 3 4 7 5 7 6 6 . 2 4 10 10 8 2 9 . 12 2 11 . 3 10 7 1 2 2 17 2 Fast Attach 174 | 6 2 4 . . 2 2 2 5 3 1 . 1 1 5 5 4 3 11 1 3 . 6 7 9 19 8 . 6 3 49 6 Attach 67 | . . 2 . 2 1 1 2 3 1 . . . 2 4 2 4 1 3 . 8 1 4 . 4 5 1 1 1 1 11 2 Detach 3 | . . . . . . . . . . . . . . . . 1 . . . . . . . . 1 . . . . 1 . Swap 148 | . 2 1 . 2 . 2 2 1 . . . 2 3 5 6 15 6 16 . 11 2 15 4 4 3 7 . 2 4 31 2 Drop 236 | . 2 2 . 4 2 4 4 6 2 6 . 3 8 9 13 13 4 21 1 15 3 15 4 6 19 10 . 5 5 40 10 Fire 696 | . 13 22 . 10 1 3 8 . . . . . 9 28 19 66 25 125 17 80 3 21 12 10 12 30 4 22 13 82 61 Melee 366 | . . . . 4 5 12 17 34 5 11 . 5 27 20 1 9 . . . 6 2 41 17 23 65 6 . 9 . 47 . Ram . | . . . . . . . . . . . . . . . . . . . . . . . . . . . . . . . . Kick 2 | . . . . . . . . . . . . . . . . . . . . . . . . 2 . . . . . . . Crush . | . . . . . . . . . . . . . . . . . . . . . . . . . . . . . . . . Escape Stasis 346 | . . . . . . 12 . 9 . . . 60 6 26 . 55 . 35 . 40 . 15 . 5 . 25 . 36 . 22 . Rewire 10 | . . . . . . . . . 1 . . . . 1 2 . 1 . 1 . . 2 . . . . . . . 1 1 Trap . | . . . . . . . . . . . . . . . . . . . . . . . . . . . . . . . . Miscellaneous . | . . . . . . . . . . . . . . . . . . . . . . . . . . . . . . . . Route ------- -11/Scrapyard -10/Materials -10/Mines -10/Exiles (discovered 2 exits: *Min x2) -9/Mines -8/Materials -8/Garrison (discovered 3 exits: *Mat x3) -8/Materials (discovered 2 exits: *Sto / Gar) -8/Garrison (discovered 3 exits: *Fac x3) -7/Factory -7/Waste -7/Factory -7/Garrison (discovered 2 exits: *Fac x2) -7/Factory (discovered 3 exits: *Fac / [*Low] / Gar) -7/Garrison (discovered 3 exits: *Fac x3) -6/Factory -6/Garrison (discovered 3 exits: *Fac x3) -5/Factory -5/Garrison (discovered 3 exits: *Fac x3) -5/Factory -5/Garrison (discovered 3 exits: *Fac x3) -4/Factory -4/Garrison (discovered 3 exits: *Fac x3) -4/Factory -4/Garrison (discovered 2 exits: *Res x2) -3/Research -3/Garrison (discovered 3 exits: *Res x3) -2/Research -2/Garrison (discovered 2 exits: *Acc x2) -1/Access -1/Garrison (discovered 3 exits: [*Acc x3]) -1/Access History --------- Turn | Location | Event 25 | -11/Scrapyard | Discovered new exit (range 15) 38 | -11/Scrapyard | Entered Materials 177 | -10/Materials | Discovered new exit (range 12) 189 | -10/Materials | Entered Mines 247 | -10/Mines | Core integrity fell below 50% 323 | -10/Mines | Lost 3 parts (1p2w) 350 | -10/Mines | Build established: Mutant 392 | -10/Mines | Learned Materials garrison access intel 495 | -10/Mines | Received a Rocket Launcher from a helpful Derelict 515 | -10/Mines | Deemed a non-threat by the Exiles lab entrance 516 | -10/Mines | Discovered new exit (range 5) 522 | -10/Mines | Entered Exiles 545 | -10/Exiles | Discovered new exit (range 15) 563 | -10/Exiles | Met 8R-AWN 584 | -10/Exiles | Met EX-HEX 627 | -10/Exiles | Met EX-BIN 645 | -10/Exiles | Aligned with FarCom system 647 | -10/Exiles | Given EX-Vault access code 690 | -10/Exiles | Opened EX-Vault 699 | -10/Exiles | Found Flying Fortress v7 730 | -10/Exiles | Warned to stay clear of 0b10 Research branches 752 | -10/Exiles | Exiles lab attacked by MAIN.C 829 | -10/Exiles | Discovered new exit (range 14) 846 | -10/Exiles | Left Exiles lab with Flying Fortress v7 846 | -10/Exiles | Entered Mines 990 | -9/Mines | Met a Derelict shopkeep closing up shop 1294 | -9/Mines | Discovered new exit (range 7) 1307 | -9/Mines | Core integrity fell below 20% 1328 | -9/Mines | Entered Materials 1328 | -8/Materials | Evolved 4 slots: Power x1, Propulsion x2, Utility x1 1329 | -8/Materials | Loaded intel: 1 garrison access location 1549 | -8/Materials | Identified exit to Garrison 1549 | -8/Materials | Entered Garrison 1686 | -8/Garrison | Garrison Relay disabled 1771 | -8/Garrison | Discovered new exit (range 8) 1774 | -8/Garrison | Identified exit to Materials 1788 | -8/Garrison | Triggered checkpoint 1806 | -8/Garrison | Discovered exit to Materials (range 15) 1855 | -8/Garrison | Discovered exit to Materials (range 11) 1864 | -8/Garrison | Installed Relay Interface Framework 1866 | -8/Garrison | Entered Materials 1941 | -8/Materials | Repaired Imp. Datajack 1968 | -8/Materials | Discovered new exit (range 12) 1985 | -8/Materials | Core integrity fell below 50% 2028 | -8/Materials | Identified exit to Storage 2174 | -8/Materials | Identified exit to Garrison 2174 | -8/Materials | Entered Garrison 2191 | -8/Garrison | Garrison Relay disabled 2206 | -8/Garrison | Triggered checkpoint 2437 | -8/Garrison | Lost 3 parts (2p1u) 2485 | -8/Garrison | Build established: Bothacker-Mutant 2640 | -8/Garrison | Discovered new exit (range 15) 2773 | -8/Garrison | Discovered new exit (range 10) 2799 | -8/Garrison | Build established: Mutant 2806 | -8/Garrison | Triggered checkpoint 2852 | -8/Garrison | Discovered new exit (range 15) 2864 | -8/Garrison | Expanded RIF knowledge: Program Shield 2876 | -8/Garrison | Triggered checkpoint 2888 | -8/Garrison | Core integrity fell below 20% 2901 | -8/Garrison | Garrison Relay disabled 2937 | -8/Garrison | Entered Factory 2937 | -7/Factory | Evolved 2 slots: Utility x2 3100 | -7/Factory | Sucked down chute 3100 | -7/Factory | Entered Waste 3100 | -7/Waste | Met up with 1 ally sucked down the chute earlier 3101 | -7/Waste | Joined by Warlord forces that had cleared the area 3293 | -7/Waste | Discovered new exit (range 11) 3348 | -7/Waste | Entered Factory 3348 | -7/Factory | Accompanied by 21 allies 3363 | -7/Factory | Identified exit to Garrison 3440 | -7/Factory | Entered Garrison 3440 | -7/Garrison | Accompanied by 16 allies 3456 | -7/Garrison | Triggered checkpoint 3513 | -7/Garrison | Garrison Relay disabled 3556 | -7/Garrison | Triggered checkpoint 3556 | -7/Garrison | Triggered checkpoint 3580 | -7/Garrison | Triggered checkpoint 3591 | -7/Garrison | Discovered new exit (range 8) 3598 | -7/Garrison | Triggered checkpoint 3678 | -7/Garrison | Discovered new exit (range 10) 3687 | -7/Garrison | Expanded RIF knowledge: Coupler Efficiency 3718 | -7/Garrison | Entered Factory 3718 | -7/Factory | Accompanied by 5 allies 4114 | -7/Factory | Local fabrication network quarantined 4118 | -7/Factory | First assault squad dispatched 4157 | -7/Factory | Fabricated B-36 Bruiser (x3) 4274 | -7/Factory | Discovered new exit (range 5) 4397 | -7/Factory | Discovered new exit (range 4) 4745 | -7/Factory | Identified exit to Garrison 4746 | -7/Factory | Entered Garrison 4758 | -7/Garrison | Triggered checkpoint 4805 | -7/Garrison | Garrison Relay disabled 4812 | -7/Garrison | Triggered checkpoint 4874 | -7/Garrison | Triggered checkpoint 4884 | -7/Garrison | Build established: Bothacker-Mutant 5191 | -7/Garrison | Discovered new exit (range 10) 5310 | -7/Garrison | Triggered checkpoint 5393 | -7/Garrison | Discovered new exit (range 12) 5522 | -7/Garrison | Triggered checkpoint 5557 | -7/Garrison | Garrison Relay disabled 5780 | -7/Garrison | Triggered checkpoint 5870 | -7/Garrison | Triggered checkpoint 5946 | -7/Garrison | Discovered new exit (range 10) 5979 | -7/Garrison | Expanded RIF knowledge: Command Fork 6016 | -7/Garrison | Triggered checkpoint 6059 | -7/Garrison | Garrison Relay disabled 6293 | -7/Garrison | Build established: Botlord-Mutant 6621 | -7/Garrison | Garrison Relay disabled 7106 | -7/Garrison | Entered Factory 7106 | -6/Factory | Accompanied by 6 allies 7106 | -6/Factory | Evolved 2 slots: Utility x2 7165 | -6/Factory | Garrison activated, responded to threat 7426 | -6/Factory | Identified exit to Garrison 7533 | -6/Factory | Fabricated Hyp. Coil Gun (x2) 7982 | -6/Factory | Local fabrication network quarantined 8080 | -6/Factory | Fabricated G-50 Soldier (x3) 8156 | -6/Factory | First assault squad dispatched 8232 | -6/Factory | Entered Garrison 8232 | -6/Garrison | Accompanied by 9 allies 8531 | -6/Garrison | Triggered checkpoint 8808 | -6/Garrison | Discovered new exit (range 9) 8827 | -6/Garrison | Expanded RIF knowledge: Patrol Navigation 8874 | -6/Garrison | Triggered checkpoint 9018 | -6/Garrison | Garrison Relay disabled 9111 | -6/Garrison | Discovered new exit (range 9) 9598 | -6/Garrison | Discovered new exit (range 9) 9678 | -6/Garrison | Triggered checkpoint 9771 | -6/Garrison | Garrison Relay disabled 10084 | -6/Garrison | Triggered checkpoint 10101 | -6/Garrison | Garrison Relay disabled 10290 | -6/Garrison | Entered Factory 10290 | -5/Factory | Accompanied by 10 allies 10290 | -5/Factory | Evolved 2 slots: Utility x2 11490 | -5/Factory | First assault squad dispatched 11508 | -5/Factory | Identified exit to Garrison 11524 | -5/Factory | Entered Garrison 11524 | -5/Garrison | Accompanied by 5 allies 11532 | -5/Garrison | Expanded RIF knowledge: Signal Jamming 11550 | -5/Garrison | Triggered checkpoint 11618 | -5/Garrison | Triggered checkpoint 11678 | -5/Garrison | Triggered checkpoint 11874 | -5/Garrison | Garrison Relay disabled 12396 | -5/Garrison | Triggered checkpoint 12628 | -5/Garrison | Triggered checkpoint 12670 | -5/Garrison | Triggered checkpoint 12710 | -5/Garrison | Discovered new exit (range 14) 12784 | -5/Garrison | Triggered checkpoint 12818 | -5/Garrison | Discovered new exit (range 9) 12878 | -5/Garrison | Triggered checkpoint 12924 | -5/Garrison | Garrison Relay disabled 13206 | -5/Garrison | Discovered new exit (range 8) 13228 | -5/Garrison | Triggered checkpoint 13264 | -5/Garrison | Garrison Relay disabled 13286 | -5/Garrison | Triggered checkpoint 13553 | -5/Garrison | Garrison Relay disabled 13614 | -5/Garrison | Triggered checkpoint 13692 | -5/Garrison | Garrison Relay disabled 13852 | -5/Garrison | Build established: Commander-Mutant 14962 | -5/Garrison | Entered Factory 14962 | -5/Factory | Accompanied by 23 allies 15163 | -5/Factory | Local fabrication network quarantined 15246 | -5/Factory | Fabricated I-36 Angel (x1) 15258 | -5/Factory | Build established: Botlord-Mutant 15562 | -5/Factory | First assault squad dispatched 15894 | -5/Factory | Identified exit to Garrison 15917 | -5/Factory | Entered Garrison 15917 | -5/Garrison | Accompanied by 14 allies 15925 | -5/Garrison | Expanded RIF knowledge: Autooverride 15974 | -5/Garrison | Triggered checkpoint 16006 | -5/Garrison | Garrison Relay disabled 16306 | -5/Garrison | Spotted B-75 Beast 16318 | -5/Garrison | Triggered checkpoint 16360 | -5/Garrison | Assimilated Beast 6a with formatsys_high 16783 | -5/Garrison | Triggered checkpoint 16978 | -5/Garrison | Triggered checkpoint 17118 | -5/Garrison | Discovered new exit (range 15) 17172 | -5/Garrison | Triggered checkpoint 17319 | -5/Garrison | Garrison Relay disabled 17477 | -5/Garrison | Discovered new exit (range 10) 17530 | -5/Garrison | Triggered checkpoint 17558 | -5/Garrison | Garrison Relay disabled 17802 | -5/Garrison | Triggered checkpoint 17827 | -5/Garrison | Garrison Relay disabled 17881 | -5/Garrison | Discovered new exit (range 10) 18644 | -5/Garrison | Entered Factory 18644 | -4/Factory | Accompanied by 14 allies 18644 | -4/Factory | Evolved 2 slots: Utility x2 18838 | -4/Factory | Spotted B-86 Titan 18858 | -4/Factory | Identified exit to Garrison 18864 | -4/Factory | Allies destroyed B-86 Titan 18942 | -4/Factory | First assault squad dispatched 19037 | -4/Factory | Entered Garrison 19037 | -4/Garrison | Accompanied by 13 allies 19068 | -4/Garrison | Triggered checkpoint 19128 | -4/Garrison | Garrison Relay disabled 19196 | -4/Garrison | Spotted B-86 Titan 19372 | -4/Garrison | Allies destroyed B-86 Titan 19390 | -4/Garrison | Triggered checkpoint 19396 | -4/Garrison | Triggered checkpoint 19633 | -4/Garrison | Discovered new exit (range 9) 19666 | -4/Garrison | Expanded RIF knowledge: Robot Detection 19764 | -4/Garrison | Triggered checkpoint 19794 | -4/Garrison | Garrison Relay disabled 19937 | -4/Garrison | Discovered new exit (range 9) 20110 | -4/Garrison | Triggered checkpoint 20228 | -4/Garrison | Garrison Relay disabled 20339 | -4/Garrison | Phase Generator disabled 20510 | -4/Garrison | Triggered checkpoint 20581 | -4/Garrison | Discovered new exit (range 14) 20658 | -4/Garrison | Triggered checkpoint 20684 | -4/Garrison | Garrison Relay disabled 21239 | -4/Garrison | Entered Factory 21239 | -4/Factory | Accompanied by 5 allies 21538 | -4/Factory | First assault squad dispatched 21878 | -4/Factory | Identified exit to Garrison 21879 | -4/Factory | Entered Garrison 21879 | -4/Garrison | Accompanied by 2 allies 21960 | -4/Garrison | Triggered checkpoint 21986 | -4/Garrison | Garrison Relay disabled 22094 | -4/Garrison | Spotted B-86 Titan 22114 | -4/Garrison | Assimilated Titan 7a with formatsys_high 22118 | -4/Garrison | Triggered checkpoint 22238 | -4/Garrison | Discovered new exit (range 9) 22298 | -4/Garrison | Triggered checkpoint 22361 | -4/Garrison | Discovered new exit (range 15) 22399 | -4/Garrison | Expanded RIF knowledge: Autoassimilate 22560 | -4/Garrison | Triggered checkpoint 22618 | -4/Garrison | Core integrity fell below 50% 22678 | -4/Garrison | Lost 9 parts (2p4n3u) 22686 | -4/Garrison | Build established: Commander-Mutant 23228 | -4/Garrison | Garrison Relay disabled 23342 | -4/Garrison | Entered Research 23342 | -3/Research | Accompanied by 8 allies 23342 | -3/Research | Evolved 2 slots: Utility x2 23561 | -3/Research | Found Prototype Hackware 23561 | -3/Research | Identified Exp. System Shield 23585 | -3/Research | Fabricated B-36 Bruiser (x3) 23842 | -3/Research | First assault squad dispatched 24154 | -3/Research | System corruption reached 10% 24158 | -3/Research | Build established: Botlord-Mutant 24373 | -3/Research | Found Unknown Device 24373 | -3/Research | Identified Antimissile System 24467 | -3/Research | Identified exit to Garrison 24509 | -3/Research | Entered Garrison 24512 | -3/Garrison | Expanded RIF knowledge: Command Fork 24536 | -3/Garrison | Triggered checkpoint 24549 | -3/Garrison | Garrison Relay disabled 24583 | -3/Garrison | Spotted B-86 Titan 24586 | -3/Garrison | Assimilated Titan 8a with formatsys_high 24590 | -3/Garrison | Triggered checkpoint 24600 | -3/Garrison | Triggered checkpoint 24600 | -3/Garrison | Triggered checkpoint 24649 | -3/Garrison | Triggered checkpoint 24727 | -3/Garrison | Discovered new exit (range 9) 24830 | -3/Garrison | Discovered new exit (range 9) 24845 | -3/Garrison | Garrison Relay disabled 24858 | -3/Garrison | Triggered checkpoint 24959 | -3/Garrison | Discovered new exit (range 15) 24978 | -3/Garrison | Triggered checkpoint 25007 | -3/Garrison | Garrison Relay disabled 25185 | -3/Garrison | Garrison Relay disabled 25204 | -3/Garrison | Triggered checkpoint 25292 | -3/Garrison | Entered Research 25292 | -2/Research | Accompanied by 13 allies 25292 | -2/Research | Evolved 2 slots: Utility x1, Weapon x1 25298 | -2/Research | Identified exit to Garrison 25347 | -2/Research | System corruption reached 10% 25402 | -2/Research | Entered Garrison 25402 | -2/Garrison | Accompanied by 14 allies 25456 | -2/Garrison | Triggered checkpoint 25522 | -2/Garrison | Garrison Relay disabled 25601 | -2/Garrison | Spotted B-90 Cyclops 25605 | -2/Garrison | Triggered checkpoint 25622 | -2/Garrison | Triggered checkpoint 25678 | -2/Garrison | Assimilated Cyclops 9a with formatsys_high 25686 | -2/Garrison | Triggered checkpoint 25709 | -2/Garrison | Triggered checkpoint 25795 | -2/Garrison | Discovered new exit (range 13) 25836 | -2/Garrison | Discovered new exit (range 11) 25845 | -2/Garrison | Expanded RIF knowledge: Structural Interface 25876 | -2/Garrison | Garrison Relay disabled 26061 | -2/Garrison | Entered Access 26061 | -1/Access | Accompanied by 17 allies 26061 | -1/Access | Evolved 2 slots: Utility x2 26311 | -1/Access | First assault squad dispatched 26671 | -1/Access | Spotted B-99 Colossus 26688 | -1/Access | Allies destroyed B-99 Colossus 26781 | -1/Access | Identified exit to Garrison 26786 | -1/Access | Garrison activated, responded to threat 26811 | -1/Access | Entered Garrison 26811 | -1/Garrison | Accompanied by 4 allies 26815 | -1/Garrison | Expanded RIF knowledge: Zone Cloak 26878 | -1/Garrison | Triggered checkpoint 26889 | -1/Garrison | Garrison Relay disabled 26919 | -1/Garrison | Spotted B-99 Colossus 27517 | -1/Garrison | Lost 3 parts (1p2u) 27870 | -1/Garrison | Triggered checkpoint 28117 | -1/Garrison | Triggered checkpoint 28505 | -1/Garrison | Lost 8 parts (2p2n1u3w) 28534 | -1/Garrison | Core integrity fell below 50% 28612 | -1/Garrison | Lost 9 parts (1p2n3u3w) 28963 | -1/Garrison | Destroyed B-99 Colossus 28980 | -1/Garrison | Lost 4 parts (1p2u1w) 28982 | -1/Garrison | Found Prototype Ballistic Gun 28982 | -1/Garrison | Identified Multirail 29144 | -1/Garrison | Discovered new exit (range 9) 29203 | -1/Garrison | Garrison Relay disabled 29274 | -1/Garrison | Triggered checkpoint 29350 | -1/Garrison | Triggered checkpoint 29380 | -1/Garrison | Triggered checkpoint 29433 | -1/Garrison | Discovered new exit (range 5) 29484 | -1/Garrison | Triggered checkpoint 29514 | -1/Garrison | Garrison Relay disabled 29636 | -1/Garrison | Triggered checkpoint 29674 | -1/Garrison | Garrison Relay disabled 29730 | -1/Garrison | Discovered new exit (range 13) 29994 | -1/Garrison | Entered Access 29994 | -1/Access | Accompanied by 9 allies 30244 | -1/Access | First assault squad dispatched 30654 | -1/Access | Garrison activated, responded to threat 30789 | -1/Access | System corruption reached 10% 30931 | -1/Access | Crushed by falling debris 31063 | -1/Access | Core integrity fell below 20% 31081 | -1/Access | Destroyed by H-88 Terminator with Heavy Machine Gun Last Messages --------------- 31066_ H-88 Terminator suffers critical hit. 31066_ H-88 Terminator destroyed. 31070_ Penetrated by Slug. 31070_ Slug penetrates Wall. 31073_ System corrupted: Heat flow error (+288). 31073_ Penetrated by Slug. 31073_ W-44 Eye distress signal jammed. 31075_ Penetrated by Slug. 31075_ Adv. Targeting Computer destroyed. 31075_ Slug penetrates Wall. 31075_ W-44 Eye distress signal jammed. 31076_ Penetrated by Slug. 31076_ W-44 Eye distress signal jammed. 31078_ Relay Coupler [Sentry] destroyed. 31078_ Penetrated by Slug. 31078_ W-44 Eye distress signal jammed. 31079_ Slug penetrates Wall. 31079_ W-44 Eye distress signal jammed. 31081_ Penetrated by Slug. [Achievement: 40k Club] Map ----- +----------------------------------------------------+ | ?????????????????????????????????????????????????? | | ?????????????????????????????????????????????????? | | ?????????????????????????????????????????????????? | | ?????????????????????????????????????????????????? | | ?????????????????????????????????????????????????? | | ?????????????????????????????????????????????????? | | ?????????????????????????????????????????????????? | | ?????????????????????????????????????????????????? | | ?????????????????????????????????????????????????? | | ?????????????????????????????????????????????????? | | ?????????????????????????????????????????????????? | | ?????????????????????????+##/#???????????????????? | | ????????????????????????? w #??????????????????? | | ????????????????????????? ???????????????????? | | ?????????????????????????| =???????????????????? | | ????????????????????????? ???????????????????? | | ????????????????????????? ????????????????????? | | ????????????????????????? k????????????????????? | | ????????????????????????? ????????????????????? | | ????????????????????????? ?????????????????????? | | ????????????????????????? ?????????????????????? | | ????????????????????????##;##????????????????????? | | ???????????????????????## ????h??h?????????????? | | ????????????????????????w #?????????????????????? | | ????????????????????????# #?????????????????????? | | ????????????????????????#@ #?????????????????????? | | ????????????????????????# #?????????????????????? | | ????????????????????????# #######???????????????? | | ??????????????????[ ?# # ####????????????? | | ???????????????? ## *t #????????????? | | ???????????g?/ ##!%= #????????????? | | ?????????????# ## = = #????????????? | | ?????????????# ##hph* #????????????? | | ?????????????#w ## [*% #????????????? | | ?????????????# ## !p! #????????????? | | ?????????????# ## = #????????????? | | ?????????????# ## %! #????????????? | | ?????????????# g ## #????????????? | | ?????????????# ## # #########???????? | | ?????????????# ## ##* #???????? | | ?????????????? g ## # %% #???????? | | ???????????????? g ## %# ! #???????? | | ?????????????????? ## *%[ #???????? | | ?????????# ########"### [== #???????? | | ?????????# ! !#! #???????? | | ?????????# *%*% #???????? | | ?????????####/+######### |! = #???????? | | ???????????????????????## # ] #???????? | | ????????????????????????# # #???????? | | ????????????????????????# ## #???????? | +----------------------------------------------------+ Best States ------------- Heat Dissipation 128 Energy Generation 45 Energy Capacity 600 Matter Stores 300 Matter Capacity 300 Sight Range 16 Terrain Scan Density 10 Armor Coverage 600 Resistance: TH 30 Utility Shielding 66 Point Defense Rating 240 Phase Shifting 15 Evasion (%) 67 Targeting Accuracy 8 Melee Accuracy 6 Target Analysis 8 Recoil Reduction 4 Offensive Hacking 10 Defensive Hacking 16 Relay Coupler Types 300 Relay Coupler Value 11 Item Schematics ----------------- None Robot Schematics ------------------ B-36 Bruiser | -7/Factory | Hacked Fabricated ------------ B-36 Bruiser | x3 | -7/Factory Hyp. Coil Gun | x2 | -6/Factory | Preloaded G-50 Soldier | x3 | -6/Factory | Preloaded I-36 Angel | x1 | -5/Factory | Preloaded B-36 Bruiser | x3 | -3/Research Alien Tech Used ----------------- None Achievements -------------- 40k Club Beloved Pwned Challenges ------------ None Game ------ Seed StealthMachineLog Manual? 0 Play Time 04:22:03 Cumulative 104.8 hours Start 2021.03.27 @ 16:25:04 End 2021.03.27 @ 23:29:56 Sessions 3 Manual Loads 0 Difficulty Rogue Special Mode None Game No. 247 Rogue 94 Adventurer 148 Explorer 5 Win Type - Total 1 Types 1/0/0/0/0/0/0/0/0 Lore% 59 Gallery% 67 Achievement% 53 Wizard Run 0 Options --------- ASCII 0 Keyboard 0 Movement Numpad Keybinds 0 Fullscreen 1 Font 18/CogNarrow Map View 76x50 Tactical HUD 1 Map Filters NONE Filters NONE Steam 1 RUN: 877a7df3-505f-4571-80cc-6027709b922c